bitfinex/quotes_BTCUSD_20251029
["timestamp","ask_amount","ask_price","bid_price","bid_amount"]
[1761714687519,0.18586994,113000.0,112990.0,0.0480177]
[1761714688529,0.18586994,113000.0,112990.0,0.22502451]
[1761714689152,0.18586994,113000.0,112990.0,0.59765651]
[1761714689402,0.17702039,113000.0,112990.0,0.59765651]
[1761714690674,0.15792795,113010.0,112990.0,0.59465651]
[1761714690983,0.15792795,113010.0,113000.0,0.05923]
[1761714693798,0.15792795,113010.0,113000.0,0.06223]
[1761714706647,0.15792795,113010.0,113000.0,0.23922115]
[1761714706857,0.15792795,113010.0,113000.0,0.06223]
[1761714707942,0.15792795,113010.0,113000.0,0.45256111]
[1761714708148,0.15792795,113010.0,113000.0,0.06223]
[1761714708354,0.15792795,113010.0,113000.0,0.06085387]
[1761714710294,0.15792795,113010.0,113000.0,0.25554413]
[1761714710489,0.15792795,113010.0,113000.0,0.23784502]
[1761714712784,0.15792795,113010.0,113000.0,0.06085387]
[1761714714326,0.15792795,113010.0,113000.0,0.03866387]
[1761714714530,0.55538995,113010.0,113000.0,0.03866387]
[1761714714734,0.57506995,113010.0,113000.0,0.03866387]
[1761714715310,0.20243795,113010.0,113000.0,0.03866387]
[1761714722849,0.61246814,113010.0,113000.0,0.003]
[1761714723058,0.63157865,113010.0,113000.0,0.003]
[1761714723270,0.63987953,113010.0,113000.0,0.003]
[1761714724108,0.17699115,113000.0,112990.0,0.0006377]
[1761714724317,0.63153134,113000.0,112990.0,0.0006377]
[1761714726038,0.63153134,113000.0,112990.0,0.0016377]
[1761714728059,0.59395134,113000.0,112990.0,0.0183277]
[1761714728256,0.22150115,113000.0,112990.0,0.0183277]
[1761714731528,0.22150115,113000.0,112990.0,0.0016377]
[1761714731529,0.25640115,113000.0,112990.0,0.0016377]
[1761714731727,0.62885134,113000.0,112990.0,0.0016377]
[1761714738735,0.59395134,113000.0,112990.0,0.0175877]
[1761714739859,0.22150115,113000.0,112990.0,0.0175877]
[1761714740322,0.25640115,113000.0,112990.0,0.0175877]
[1761714742618,0.19667115,113000.0,112990.0,0.0175877]
[1761714742821,0.21957115,113000.0,112990.0,0.0175877]
[1761714743787,0.25447115,113000.0,112990.0,0.0016377]
[1761714744222,0.62692134,113000.0,112990.0,0.0016377]
[1761714745336,0.65351099,113000.0,112990.0,0.0016377]
[1761714752487,0.6726307,113000.0,112990.0,0.0016377]
[1761714753989,0.65351099,113000.0,112990.0,0.0016377]
[1761714754231,0.67263172,113000.0,112990.0,0.0016377]
[1761714755573,0.80693299,113000.0,112990.0,0.0016377]
[1761714755818,1.25824796,113000.0,112990.0,0.0016377]
[1761714756027,1.1708339,113000.0,112990.0,0.0016377]
[1761714756235,1.20265213,113000.0,112990.0,0.0016377]
[1761714756440,1.1708339,113000.0,112990.0,0.0016377]
[1761714756849,1.20265213,113000.0,112990.0,0.0016377]
[1761714757062,1.25290751,113000.0,112990.0,0.0016377]
[1761714757269,1.27050155,113000.0,112990.0,1e-08]
[1761714757478,1.25389095,113000.0,112990.0,1e-08]
[1761714758110,0.17702248,112980.0,112970.0,0.00175877]
[1761714758313,0.58975267,112980.0,112970.0,0.00175877]
[1761714758490,0.62486267,112980.0,112970.0,0.00175877]
[1761714758912,0.63811267,112980.0,112970.0,0.00218408]
[1761714759363,0.63811267,112980.0,112970.0,0.00318408]
[1761714764700,1.155647,112980.0,112970.0,0.00318408]
[1761714765790,1.155647,112980.0,112970.0,0.00218408]
[1761714765986,1.157647,112980.0,112970.0,0.00218408]
[1761714767023,1.158647,112980.0,112970.0,0.00218408]
[1761714767711,0.78619681,112980.0,112970.0,0.00218408]
[1761714768881,0.56683399,112980.0,112970.0,0.00218408]
[1761714769132,0.76694647,112980.0,112970.0,0.00218408]
[1761714774627,1.13939666,112980.0,112970.0,0.00218408]
[1761714775013,0.76694647,112980.0,112970.0,0.00218408]
[1761714775399,1.13999026,112980.0,112970.0,0.00218408]
[1761714776579,1.15905791,112980.0,112970.0,0.00218408]
[1761714777333,1.13999026,112980.0,112970.0,0.00218408]
[1761714777544,1.1590597,112980.0,112970.0,0.00218408]
[1761714782294,1.16734398,112980.0,112970.0,0.00218408]
[1761714783158,0.95963227,112980.0,112970.0,0.00218408]
[1761714783488,0.98622835,112980.0,112970.0,0.00218408]
[1761714785041,1.02133835,112980.0,112970.0,0.00218408]
[1761714791350,0.99474227,112980.0,112970.0,0.00218408]
[1761714793059,1.01862662,112980.0,112970.0,0.00218408]
[1761714794253,1.10844563,112980.0,112970.0,0.00218408]
[1761714794454,1.85301085,112980.0,112970.0,0.00218408]
[1761714794664,1.86961934,112980.0,112970.0,0.00218408]
[1761714794862,1.89621785,112980.0,112970.0,0.00218408]
[1761714795259,1.87960936,112980.0,112970.0,0.00218408]
[1761714796849,0.17706949,112950.0,112940.0,0.07248851]
[1761714797135,0.54981648,112950.0,112940.0,0.07253691]
[1761714797335,0.17706949,112950.0,112940.0,0.09632511]
[1761714797602,0.54981648,112950.0,112940.0,0.09632511]
[1761714798240,0.17706949,112950.0,112940.0,0.09932511]
[1761714798488,0.54981648,112950.0,112940.0,0.09932511]
[1761714804796,0.17706949,112950.0,112940.0,0.09932511]
[1761714805029,0.54981648,112950.0,112940.0,0.09932511]
[1761714805258,0.54981648,112950.0,112940.0,0.0727266]
[1761714806911,0.59040648,112950.0,112940.0,0.0727266]
[1761714807320,0.21765949,112950.0,112940.0,0.0727266]
[1761714807526,0.19425949,112950.0,112940.0,0.0727266]
[1761714813261,0.54981648,112950.0,112940.0,0.0727266]
[1761714813675,0.17706949,112950.0,112940.0,0.0727266]
[1761714817315,0.17706949,112950.0,112940.0,0.24981177]
[1761714818143,0.17706949,112950.0,112940.0,0.0727266]
[1761714819319,0.17706949,112950.0,112940.0,0.24981177]
[1761714820315,0.17706949,112950.0,112940.0,0.62255876]
[1761714820715,0.17706949,112950.0,112940.0,0.24981177]
[1761714820959,0.17706949,112950.0,112940.0,0.62255876]
[1761714824027,0.5390621,112960.0,112940.0,0.62255876]
[1761714824229,0.51993173,112960.0,112950.0,0.07545]
[1761714824539,0.51983456,112960.0,112950.0,0.07587543]
[1761714826414,0.51983456,112960.0,112950.0,0.07787543]
[1761714830413,0.54822456,112960.0,112950.0,0.04287543]
[1761714831268,0.54822456,112960.0,112950.0,0.07787543]
[1761714833980,0.92097155,112960.0,112950.0,0.04287543]
[1761714834128,0.56735858,112960.0,112950.0,0.04287543]
[1761714836296,0.60109858,112960.0,112950.0,0.00242543]
[1761714836730,0.97384557,112960.0,112950.0,0.00242543]
[1761714836937,0.94010557,112960.0,112950.0,0.02535543]
[1761714837326,0.5674354,112960.0,112950.0,0.02535543]
[1761714837776,0.19461159,112960.0,112950.0,0.04287543]
[1761714837980,0.54830138,112960.0,112950.0,0.04287543]
[1761714838127,0.5674354,112960.0,112950.0,0.04287543]
[1761714838586,0.5674354,112960.0,112950.0,0.07787543]
[1761714840144,0.6011754,112960.0,112950.0,0.00242543]
[1761714841699,0.63337892,112960.0,112950.0,0.00242543]
[1761714841905,1.09602174,112960.0,112950.0,0.00242543]
[1761714842091,1.16823093,112960.0,112950.0,0.00242543]
[1761714842295,1.44394195,112960.0,112950.0,0.00242543]
[1761714842576,1.46784503,112960.0,112950.0,0.00242543]
[1761714842765,1.48444831,112960.0,112950.0,0.00242543]
[1761714843003,1.08772142,112960.0,112950.0,0.00242543]
[1761714843157,1.46054523,112960.0,112950.0,0.00042543]
[1761714843358,1.11161304,112960.0,112950.0,0.00042543]
[1761714844352,1.09500976,112960.0,112950.0,0.00042543]
[1761714847275,1.06319153,112960.0,112950.0,0.00042543]
[1761714855626,0.69036772,112960.0,112950.0,0.00042543]
[1761714855825,0.23665709,112960.0,112950.0,0.00042543]
[1761714856057,0.6011754,112960.0,112950.0,0.00042543]
[1761714856259,0.6011754,112960.0,112950.0,0.02315543]
[1761714856260,0.17547757,112960.0,112950.0,0.02315543]
[1761714856465,0.17547757,112960.0,112950.0,0.07357543]
[1761714856959,0.14708757,112960.0,112950.0,0.07357543]
[1761714858196,0.14708757,112960.0,112950.0,0.07557543]
[1761714858399,0.15307757,112960.0,112950.0,0.07557543]
[1761714859642,0.17399757,112960.0,112950.0,0.07557543]
[1761714860043,0.17399757,112960.0,112950.0,0.04155543]
[1761714861203,0.17399757,112960.0,112950.0,0.07557543]
[1761714862276,0.15307757,112960.0,112950.0,0.07557543]
[1761714862479,0.14708757,112960.0,112950.0,0.07557543]
[1761714870377,0.14708757,112960.0,112950.0,0.09328237]
[1761714874156,0.14708757,112960.0,112950.0,0.07557543]
[1761714883179,0.17705382,112960.0,112950.0,0.09328237]
[1761714883386,0.45246656,112970.0,112950.0,0.73299468]
[1761714883598,0.2474881,112970.0,112960.0,0.24534382]
[1761714883795,0.2474881,112970.0,112960.0,0.73457979]
[1761714885019,0.2474881,112970.0,112960.0,0.73757979]
[1761714886993,0.2474881,112970.0,112960.0,0.36475598]
[1761714887195,0.2474881,112970.0,112960.0,0.73757979]
[1761714888957,0.2474881,112970.0,112960.0,0.73779248]
[1761714897112,0.2474881,112970.0,112960.0,0.73479248]
[1761714897555,0.06253213,112970.0,112960.0,0.73879248]
[1761714897758,0.06253213,112970.0,112960.0,0.73479248]
[1761714897972,0.06253213,112970.0,112960.0,1.07979248]
[1761714898995,0.06253213,112970.0,112960.0,1.08079248]
[1761714899386,0.06253213,112970.0,112960.0,0.70796867]
[1761714899608,0.06253213,112970.0,112960.0,1.45298033]
[1761714900381,0.06253213,112970.0,112960.0,1.44798033]
[1761714900598,0.06253213,112970.0,112960.0,1.82048616]
[1761714900742,0.06253213,112970.0,112960.0,1.82748616]
[1761714901316,0.06253213,112970.0,112960.0,1.86366844]
[1761714901524,0.06253213,112970.0,112960.0,1.86266844]
[1761714901736,0.06253213,112970.0,112960.0,1.87366843]
[1761714902413,0.06253213,112970.0,112960.0,1.87266843]
[1761714902669,0.06253213,112970.0,112960.0,1.86766843]
[1761714903134,0.06253213,112970.0,112960.0,1.87666843]
[1761714903414,0.06253213,112970.0,112960.0,1.86766843]
[1761714903637,0.06253213,112970.0,112960.0,1.87766843]
[1761714903858,0.06253213,112970.0,112960.0,1.86766844]
[1761714904076,0.06253213,112970.0,112960.0,1.87766843]
[1761714904295,0.06253213,112970.0,112960.0,1.86766844]
[1761714904527,0.06253213,112970.0,112960.0,1.88766842]
[1761714906681,0.06253213,112970.0,112960.0,1.87766843]
[1761714906925,1e-08,112980.0,112970.0,2.87654539]
[1761714907172,1e-08,112980.0,112970.0,3.0497244]
[1761714907635,1e-08,112980.0,112970.0,3.07630248]
[1761714907865,1e-08,112980.0,112970.0,3.14118584]
[1761714908322,1e-08,112980.0,112970.0,3.15318584]
[1761714909025,1e-08,112980.0,112970.0,3.15518584]
[1761714909256,1e-08,112980.0,112970.0,0.93015085]
[1761714909490,1e-08,112980.0,112970.0,3.15318583]
[1761714909989,1e-08,112980.0,112970.0,3.16718583]
[1761714910905,1e-08,112980.0,112970.0,3.15718584]
[1761714911178,0.0082438,113050.0,113040.0,0.16104852]
[1761714911431,0.17718143,113060.0,113040.0,0.38886038]
[1761714911669,0.18541841,113060.0,113050.0,0.33639188]
[1761714911909,0.18541841,113060.0,113050.0,0.70889771]
[1761714912153,0.18711825,113060.0,113050.0,0.70889771]
[1761714912422,0.18760261,113060.0,113050.0,0.70889771]
[1761714912900,0.18760261,113060.0,113050.0,0.53198484]
[1761714913140,0.18760261,113060.0,113050.0,0.70889771]
[1761714913601,0.18760261,113060.0,113050.0,0.34039188]
[1761714914001,0.18760261,113060.0,113050.0,0.16347901]
[1761714914280,0.18760261,113060.0,113050.0,0.55367612]
[1761714914487,0.18760261,113060.0,113050.0,0.34039188]
[1761714914712,0.18760261,113060.0,113050.0,0.71289771]
[1761714915152,0.18760261,113060.0,113050.0,0.34039188]
[1761714915362,0.02677219,113070.0,113050.0,2.95160914]
[1761714915576,0.02677219,113070.0,113060.0,1.86162572]
[1761714915577,0.00847564,113070.0,113060.0,1.86162572]
[1761714915789,0.0042,113090.0,113080.0,0.51686593]
[1761714916002,0.00424839,113090.0,113080.0,0.75994494]
[1761714916223,0.00424839,113090.0,113080.0,1.5049566]
[1761714916426,0.0002,113100.0,113090.0,0.54935612]
[1761714916629,0.0002,113100.0,113090.0,0.70883513]
[1761714916837,0.0002,113100.0,113090.0,0.3363293]
[1761714917051,0.0002,113100.0,113090.0,0.70883513]
[1761714917269,0.0002,113100.0,113090.0,1.46752323]
[1761714917489,0.0002,113100.0,113090.0,1.16889741]
[1761714917933,0.0002,113100.0,113090.0,1.16989741]
[1761714918145,0.0002,113100.0,113090.0,1.54240324]
[1761714918899,0.0002,113100.0,113090.0,1.17489741]
[1761714919115,0.0002,113100.0,113090.0,0.6823293]
[1761714919320,0.0002,113100.0,113090.0,1.13871513]
[1761714919943,0.0002,113100.0,113090.0,0.7662093]
[1761714920162,0.0002,113100.0,113090.0,1.13871513]
[1761714920784,0.0002,113100.0,113090.0,0.7662093]
[1761714920988,0.0002,113100.0,113090.0,1.13871513]
[1761714921831,0.0002,113100.0,113090.0,0.7661693]
[1761714922075,0.54954048,113100.0,113090.0,0.58931901]
[1761714922286,0.17788397,113100.0,113090.0,0.58931901]
[1761714922509,0.17788397,113100.0,113090.0,0.16547901]
[1761714922754,0.5503898,113100.0,113090.0,0.16547901]
[1761714922965,0.00104932,113100.0,113090.0,0.07566]
[1761714923181,0.00104932,113100.0,113090.0,0.15947901]
[1761714923182,0.5503898,113100.0,113090.0,0.15947901]
[1761714923394,0.5503898,113100.0,113090.0,0.06966]
[1761714923633,0.5503898,113100.0,113090.0,0.03894]
[1761714923634,0.94414563,113100.0,113090.0,0.03894]
[1761714923849,0.5716398,113100.0,113090.0,0.03894]
[1761714924284,0.5503898,113100.0,113090.0,0.07166]
[1761714924706,0.17788397,113100.0,113090.0,0.07166]
[1761714924958,0.5503898,113100.0,113090.0,0.03894]
[1761714925164,0.5503898,113100.0,113090.0,0.06966]
[1761714925387,0.17788397,113100.0,113090.0,0.15947901]
[1761714925598,0.17788397,113100.0,113090.0,0.53298484]
[1761714925808,0.00104932,113100.0,113090.0,0.70983513]
[1761714926272,0.17788397,113100.0,113090.0,0.70983513]
[1761714926486,0.17788397,113100.0,113090.0,0.15947901]
[1761714926711,0.17788397,113100.0,113090.0,0.16147901]
[1761714926919,0.17788397,113100.0,113090.0,0.15947901]
[1761714927359,0.5503898,113100.0,113090.0,0.06966]
[1761714927600,0.55858517,113100.0,113090.0,0.06966]
[1761714928423,0.55858517,113100.0,113090.0,0.07366]
[1761714928875,0.18607934,113100.0,113090.0,0.07366]
[1761714929056,0.55858517,113100.0,113090.0,0.07366]
[1761714929684,0.00924469,113100.0,113090.0,0.53598484]
[1761714929898,0.00924469,113100.0,113090.0,0.71283513]
[1761714930324,0.00924469,113100.0,113090.0,1.05283513]
[1761714930762,0.00924469,113100.0,113090.0,0.6803293]
[1761714930972,0.00924469,113100.0,113090.0,1.05383513]
[1761714931418,0.00924469,113100.0,113090.0,1.20533475]
[1761714931830,0.00924469,113100.0,113090.0,1.21033475]
[1761714933224,0.00924469,113100.0,113090.0,0.50547901]
[1761714933430,0.18607934,113100.0,113090.0,0.16547901]
[1761714934501,0.00924469,113100.0,113090.0,0.97205977]
[1761714934705,0.00924469,113100.0,113090.0,0.87033475]
[1761714937204,0.00924469,113100.0,113090.0,0.6823293]
[1761714937413,0.00924469,113100.0,113090.0,1.21033475]
[1761714937626,0.00924469,113100.0,113090.0,0.3423293]
[1761714939179,0.00924469,113100.0,113090.0,0.4265293]
[1761714939601,0.18607934,113100.0,113090.0,0.24967901]
[1761714939812,0.18607934,113100.0,113090.0,0.4265293]
[1761714940498,0.00924469,113100.0,113090.0,0.3423293]
[1761714942519,0.18607934,113100.0,113090.0,0.3423293]
[1761714943334,0.18607934,113100.0,113090.0,0.16547901]
[1761714943542,0.18607934,113100.0,113090.0,0.3423293]
[1761714943746,0.18607934,113100.0,113090.0,0.16547901]
[1761714943950,0.18607934,113100.0,113090.0,0.3423293]
[1761714945868,0.18607934,113100.0,113090.0,0.16547901]
[1761714946023,0.00924469,113100.0,113090.0,0.18316403]
[1761714946228,0.18607934,113100.0,113090.0,0.3423293]
[1761714946429,0.18607934,113100.0,113090.0,0.16547901]
[1761714947286,0.18607934,113100.0,113090.0,0.3423293]
[1761714947747,0.17788397,113100.0,113090.0,0.3423293]
[1761714947891,0.00932568,113100.0,113090.0,0.3423293]
[1761714948558,0.18616033,113100.0,113090.0,0.3423293]
[1761714949027,0.18616033,113100.0,113090.0,0.16547901]
[1761714949257,0.18616033,113100.0,113090.0,0.18316403]
[1761714950352,0.18616033,113100.0,113090.0,0.36001432]
[1761714950597,0.18616033,113100.0,113090.0,0.3423293]
[1761714951286,0.00932568,113100.0,113090.0,1.21033475]
[1761714951499,0.00932568,113100.0,113090.0,0.71851158]
[1761714952314,0.00932568,113100.0,113090.0,1.24651703]
[1761714953343,0.00932568,113100.0,113090.0,1.09021678]
[1761714953530,0.00932568,113100.0,113090.0,0.71851158]
[1761714953761,0.00932568,113100.0,113090.0,1.09021678]
[1761714955495,0.00932568,113100.0,113090.0,0.71851158]
[1761714955769,0.00932568,113100.0,113090.0,1.09021678]
[1761714956484,0.00932568,113100.0,113090.0,0.71851158]
[1761714957087,0.00932568,113100.0,113090.0,1.09021678]
[1761714957617,0.00932568,113100.0,113090.0,0.71851158]
[1761714958183,0.00104932,113100.0,113090.0,0.71851158]
[1761714963429,0.00104932,113100.0,113090.0,0.3394993]
[1761714964047,0.17788397,113100.0,113090.0,0.3394993]
[1761714964685,0.17788397,113100.0,113090.0,0.16264901]
[1761714967545,0.17788397,113100.0,113090.0,0.18033403]
[1761714970098,0.17788397,113100.0,113090.0,0.16264901]
[1761714971621,0.17788397,113100.0,113090.0,0.15664901]
[1761714971964,0.17788397,113100.0,113090.0,0.16064901]
[1761714973287,0.19723397,113100.0,113090.0,0.16064901]
[1761714973902,0.17788397,113100.0,113090.0,0.16064901]
[1761714974448,0.20677397,113100.0,113090.0,0.13075901]
[1761714974652,0.20677397,113100.0,113090.0,0.11015901]
[1761714974857,0.23644397,113100.0,113090.0,0.004]
[1761714975051,0.20677397,113100.0,113090.0,0.02431]
[1761714975198,0.20677397,113100.0,113090.0,0.03701]
[1761714975664,0.20677397,113100.0,113090.0,0.03301]
[1761714976059,0.20677397,113100.0,113090.0,0.03501]
[1761714977350,0.20677397,113100.0,113090.0,0.0147]
[1761714977351,0.57868255,113100.0,113090.0,0.0147]
[1761714977561,0.23644397,113100.0,113090.0,0.0147]
[1761714977766,0.20677397,113100.0,113090.0,0.03501]
[1761714978588,0.60835255,113100.0,113090.0,0.002]
[1761714979353,0.20677397,113100.0,113090.0,0.03501]
[1761714980317,0.20677397,113100.0,113090.0,0.01913]
[1761714982127,0.23644397,113100.0,113090.0,0.0127]
[1761714982347,0.17685029,113090.0,113080.0,0.01634]
[1761714982550,0.21008029,113090.0,113080.0,0.10615901]
[1761714982861,0.21008029,113090.0,113080.0,0.03665]
[1761714983065,0.23975029,113090.0,113080.0,0.03665]
[1761714983403,0.21008029,113090.0,113080.0,0.03665]
[1761714983934,0.21008029,113090.0,113080.0,0.03965]
[1761714984988,0.61165887,113090.0,113080.0,0.003]
[1761714986038,0.63822695,113090.0,113080.0,0.003]
[1761714986570,0.17686593,113080.0,113070.0,0.01634]
[1761714986757,0.19621593,113080.0,113070.0,0.03669839]
[1761714987538,0.20680593,113080.0,113070.0,0.03669839]
[1761714988141,0.20680593,113080.0,113070.0,0.03969839]
[1761714988554,0.23647593,113080.0,113070.0,0.00304839]
[1761714988778,0.23647593,113080.0,113070.0,0.02335839]
[1761714990313,0.20680593,113080.0,113070.0,0.02652839]
[1761714991845,0.19692629,113080.0,113070.0,0.02652839]
[1761714992808,0.56883487,113080.0,113070.0,0.02652839]
[1761714993228,0.19692629,113080.0,113070.0,0.02652839]
[1761714993806,0.19735103,113080.0,113070.0,0.02652839]
[1761714993982,0.59892961,113080.0,113070.0,0.00304839]
[1761714994212,0.19735103,113080.0,113070.0,0.02335839]
[1761714994420,0.59582915,113080.0,113070.0,0.00304839]
[1761714994626,0.62549915,113080.0,113070.0,0.00304839]
[1761714995726,0.62549915,113080.0,113070.0,4.839e-05]
[1761714996267,0.62549915,113080.0,113070.0,0.00104839]
[1761714996473,0.96549915,113080.0,113070.0,0.00104839]
[1761714998192,0.59359057,113080.0,113070.0,0.00104839]
[1761714999142,0.96549915,113080.0,113070.0,0.00104839]
[1761715000718,0.98455697,113080.0,113070.0,0.00104839]
[1761715002555,0.98455697,113080.0,113070.0,4.839e-05]
[1761715003134,0.98655697,113080.0,113070.0,4.839e-05]
[1761715007223,1.07637598,113080.0,113070.0,4.839e-05]
[1761715008258,1.08464547,113080.0,113070.0,4.839e-05]
[1761715015127,1.14468191,113080.0,113070.0,4.839e-05]
[1761715015342,1.16123526,113080.0,113070.0,4.839e-05]
[1761715015551,0.82114491,113080.0,113070.0,4.839e-05]
[1761715015752,1.14468191,113080.0,113070.0,4.839e-05]
[1761715015961,0.73659105,113080.0,113070.0,4.839e-05]
[1761715016170,0.64677204,113080.0,113070.0,4.839e-05]
[1761715016369,0.61464839,113080.0,113070.0,4.839e-05]
[1761715018555,0.61264839,113080.0,113070.0,4.839e-05]
[1761715018703,0.61264839,113080.0,113070.0,0.01962839]
[1761715018905,0.61464839,113080.0,113070.0,0.01962839]
[1761715019295,0.58497839,113080.0,113070.0,0.39159299]
[1761715019498,0.51929067,113080.0,113070.0,0.43711299]
[1761715019881,0.51929067,113080.0,113070.0,0.70381357]
[1761715019882,0.17929067,113080.0,113070.0,0.70381357]
[1761715020595,0.00242474,113080.0,113070.0,0.70381357]
[1761715021008,0.17929067,113080.0,113070.0,0.70381357]
[1761715021683,0.17729067,113080.0,113070.0,0.70381357]
[1761715022113,0.17729067,113080.0,113070.0,0.70481357]
[1761715022335,0.17729067,113080.0,113070.0,0.70381357]
[1761715022556,0.17729067,113080.0,113070.0,0.70681357]
[1761715023620,0.17729067,113080.0,113070.0,0.529932]
[1761715024965,0.23608067,113080.0,113070.0,0.00304839]
[1761715025402,0.20684067,113080.0,113070.0,0.02262839]
[1761715026302,0.20684067,113080.0,113070.0,0.03469839]
[1761715029023,0.20684067,113080.0,113070.0,0.40666299]
[1761715029227,0.23485067,113080.0,113070.0,0.00304839]
[1761715030672,0.20684067,113080.0,113070.0,0.02209839]
[1761715032061,0.20684067,113080.0,113070.0,0.43480299]
[1761715032479,0.20684067,113080.0,113070.0,0.03424839]
[1761715033224,0.20684067,113080.0,113070.0,0.40621299]
[1761715033852,0.17729067,113080.0,113070.0,0.524622]
[1761715034813,0.17729067,113080.0,113070.0,0.70150357]
[1761715037715,0.00042474,113080.0,113070.0,0.70150357]
[1761715038127,0.00042474,113080.0,113070.0,0.72806746]
[1761715038338,0.17729067,113080.0,113070.0,0.72806746]
[1761715039142,0.00042474,113080.0,113070.0,0.72806746]
[1761715039930,0.17729067,113080.0,113070.0,0.72806746]
[1761715040138,0.00042474,113080.0,113070.0,0.70150357]
[1761715040948,0.00042474,113080.0,113070.0,1.07346817]
[1761715041202,0.00042474,113080.0,113070.0,1.10003206]
[1761715042044,0.00042474,113080.0,113070.0,1.50817894]
[1761715042243,0.00042474,113080.0,113070.0,1.13621434]
[1761715042802,0.00042474,113080.0,113070.0,1.13421434]
[1761715043589,0.00042474,113080.0,113070.0,1.11733434]
[1761715043792,0.00042474,113080.0,113070.0,1.11833434]
[1761715044402,0.00042474,113080.0,113070.0,1.12333434]
[1761715047086,0.00042474,113080.0,113070.0,1.20713434]
[1761715047501,0.00042474,113080.0,113070.0,0.71518746]
[1761715047709,0.00042474,113080.0,113070.0,0.79894746]
[1761715047923,0.00042474,113080.0,113070.0,1.20709434]
[1761715048569,0.00042474,113080.0,113070.0,0.79894746]
[1761715048943,0.00042474,113080.0,113070.0,1.17091206]
[1761715049152,0.00042474,113080.0,113070.0,0.79894746]
[1761715049356,0.00042474,113080.0,113070.0,1.17091206]
[1761715049508,0.00042474,113080.0,113070.0,0.79894746]
[1761715049714,0.00042474,113080.0,113070.0,1.17091206]
[1761715050569,0.00042474,113080.0,113070.0,1.20709434]
[1761715055265,0.00042474,113080.0,113070.0,1.58905893]
[1761715055682,0.00042474,113080.0,113070.0,1.21709433]
[1761715056504,0.00042474,113080.0,113070.0,1.58905893]
[1761715056899,0.00042474,113080.0,113070.0,1.21709433]
[1761715057108,0.00042474,113080.0,113070.0,1.20709434]
[1761715061008,0.00042474,113080.0,113070.0,1.21709433]
[1761715061210,0.00042474,113080.0,113070.0,1.58905893]
[1761715061414,0.00042474,113080.0,113070.0,1.92905893]
[1761715062097,0.00042474,113080.0,113070.0,1.92305893]
[1761715062523,0.00042474,113080.0,113070.0,1.92905893]
[1761715062733,0.00042474,113080.0,113070.0,1.92405893]
[1761715064072,0.00042474,113080.0,113070.0,1.92305893]
[1761715064273,0.00042474,113080.0,113070.0,1.93005893]
[1761715064550,0.00042474,113080.0,113070.0,1.99287532]
[1761715064873,0.32932387,113130.0,113120.0,0.02886]
[1761715065078,0.32048449,113130.0,113120.0,0.13635934]
[1761715065332,0.49727225,113130.0,113120.0,0.51656361]
[1761715066206,0.49735787,113130.0,113120.0,0.51656361]
[1761715068432,0.17687338,113130.0,113120.0,0.693367]
[1761715069041,8.562e-05,113130.0,113120.0,0.693367]
[1761715069447,0.17687338,113130.0,113120.0,0.3214024]
[1761715069651,0.17687338,113130.0,113120.0,0.693367]
[1761715070619,0.17793465,113130.0,113120.0,0.693367]
[1761715070864,0.00114689,113130.0,113120.0,0.693367]
[1761715071476,0.17793465,113130.0,113120.0,0.693367]
[1761715071679,0.19642465,113130.0,113120.0,0.667447]
[1761715071853,0.19642465,113130.0,113120.0,0.2954824]
[1761715072061,0.23582465,113130.0,113120.0,0.11867901]
[1761715072612,0.20931465,113130.0,113120.0,0.11867901]
[1761715072813,0.17793465,113130.0,113120.0,0.3214024]
[1761715073210,0.17678776,113130.0,113120.0,0.3214024]
[1761715073434,0.17678776,113130.0,113120.0,0.693367]
[1761715074263,0.17678776,113130.0,113120.0,0.3214024]
[1761715074467,0.17678776,113130.0,113120.0,0.51656361]
[1761715075018,0.17678776,113130.0,113120.0,0.693367]
[1761715076730,0.0002,113140.0,113130.0,0.17678776]
[1761715076935,0.0002,113140.0,113130.0,0.69481137]
[1761715077216,0.17697214,113140.0,113130.0,0.69481137]
[1761715077427,0.0002,113140.0,113130.0,0.69481137]
[1761715077627,0.17697214,113140.0,113130.0,0.69481137]
[1761715078038,0.0002,113140.0,113130.0,0.69481137]
[1761715078463,0.0002,113140.0,113130.0,0.72136005]
[1761715078697,0.17697214,113140.0,113130.0,0.34939545]
[1761715078917,0.17697214,113140.0,113130.0,0.32284677]
[1761715079128,0.17697214,113140.0,113130.0,0.69481137]
[1761715079336,0.17697214,113140.0,113130.0,0.51802361]
[1761715079551,0.17697214,113140.0,113130.0,0.32284677]
[1761715079751,0.17697214,113140.0,113130.0,0.14605901]
[1761715080376,0.17697214,113140.0,113130.0,0.08981901]
[1761715080377,0.60639789,113140.0,113130.0,0.08981901]
[1761715080834,0.23486214,113140.0,113130.0,0.08981901]
[1761715081462,0.17678776,113130.0,113120.0,0.03817016]
[1761715081669,0.19527776,113130.0,113120.0,0.2954824]
[1761715081892,0.19527776,113130.0,113120.0,0.3214024]
[1761715082845,0.20816776,113130.0,113120.0,0.11867901]
[1761715083272,0.17680339,113120.0,113110.0,0.04034418]
[1761715083491,0.23469339,113120.0,113110.0,0.08990463]
[1761715083694,0.23469339,113120.0,113110.0,0.28396365]
[1761715083887,0.20818339,113120.0,113110.0,0.29558365]
[1761715084098,0.20818339,113120.0,113110.0,0.32150365]
[1761715084520,0.20818339,113120.0,113110.0,0.08990463]
[1761715084521,0.23469339,113120.0,113110.0,0.08990463]
[1761715084930,0.23469339,113120.0,113110.0,0.09190463]
[1761715085134,0.20818339,113120.0,113110.0,0.10914463]
[1761715085721,0.17680339,113120.0,113110.0,0.49836228]
[1761715085931,0.17680339,113120.0,113110.0,0.50660038]
[1761715086145,0.19529339,113120.0,113110.0,0.09190463]
[1761715086350,0.22180339,113120.0,113110.0,0.09190463]
[1761715087342,0.23544339,113120.0,113110.0,0.09190463]
[1761715087538,0.23544339,113120.0,113110.0,0.08990463]
[1761715087806,0.20893339,113120.0,113110.0,0.10860463]
[1761715088009,0.19584847,113130.0,113110.0,0.6985694]
[1761715088214,0.51678776,113130.0,113120.0,0.10851901]
[1761715088433,0.51678776,113130.0,113120.0,0.13745901]
[1761715088861,0.17678776,113130.0,113120.0,0.13745901]
[1761715089702,0.19528776,113130.0,113120.0,0.08981901]
[1761715089895,0.22372776,113130.0,113120.0,0.08981901]
[1761715090105,0.22372776,113130.0,113120.0,0.10823901]
[1761715090491,0.19528776,113130.0,113120.0,0.13617901]
[1761715090638,0.19528776,113130.0,113120.0,0.10823901]
[1761715091257,0.23575776,113130.0,113120.0,0.10823901]
[1761715092182,0.20731776,113130.0,113120.0,0.10823901]
[1761715092375,0.20731776,113130.0,113120.0,0.12159901]
[1761715093647,0.17678776,113130.0,113120.0,0.14953901]
[1761715094078,0.17678776,113130.0,113120.0,0.53875509]
[1761715094228,0.17678776,113130.0,113120.0,0.14953901]
[1761715094434,0.17678776,113130.0,113120.0,0.16721934]
[1761715094855,0.17678776,113130.0,113120.0,0.34402273]
[1761715095050,0.01948775,113140.0,113130.0,0.17678776]
[1761715095219,0.00041219,113140.0,113130.0,0.68450252]
[1761715096342,0.17718433,113140.0,113130.0,0.68450252]
[1761715096548,0.17718433,113140.0,113130.0,0.13617901]